bitfinex-derivatives/quotes_BTCF0:USTF0_20260106
["timestamp","ask_amount","ask_price","bid_price","bid_amount"]
[1767712035421,0.09052,93971.0,93945.0,0.09183819]
[1767712035624,0.09052,93971.0,93948.0,0.010647]
[1767712035816,0.12329777,93972.0,93948.0,0.010647]
[1767712036017,0.12329777,93978.0,93949.0,0.09183819]
[1767712036217,0.09052,93977.0,93949.0,0.09183819]
[1767712036420,0.12329777,93978.0,93965.0,0.010645]
[1767712036617,0.12329777,93985.0,93965.0,0.010645]
[1767712036935,0.12329777,93980.0,93960.0,0.010646]
[1767712037128,0.12329777,93988.0,93963.0,0.010646]
[1767712037328,0.09052,93982.0,93966.0,0.010645]
[1767712037632,0.12329777,93982.0,93961.0,0.010646]
[1767712037830,0.12329777,93982.0,93955.0,0.09052]
[1767712037831,0.21381777,93982.0,93955.0,0.09052]
[1767712038033,0.00212792,93989.0,93981.0,0.010644]
[1767712038330,0.12329777,93995.0,93976.0,0.09052]
[1767712038526,0.12329777,93995.0,93977.0,0.09052]
[1767712038725,0.12329777,93992.0,93976.0,0.09052]
[1767712038925,0.12329777,93992.0,93975.0,0.09052]
[1767712039431,0.09052,94001.0,93975.0,0.09052]
[1767712039432,0.0321022,93990.0,93975.0,0.09052]
[1767712039636,0.0321022,94006.0,93976.0,0.10548439]
[1767712039827,0.12329777,94003.0,93979.0,0.09183819]
[1767712040129,0.12329777,94004.0,93979.0,0.10248219]
[1767712040430,0.12329777,94004.0,93979.0,0.09183819]
[1767712041130,0.09052,94011.0,93981.0,0.09360024]
[1767712041329,0.12329777,94010.0,93981.0,0.09360024]
[1767712041530,0.12329777,94010.0,93981.0,0.10424424]
[1767712041726,0.12329777,94010.0,93981.0,0.09360024]
[1767712041923,0.1226222,94023.0,93987.0,0.09183819]
[1767712042124,0.09119557,94021.0,93992.0,0.00190027]
[1767712042431,0.12329777,94016.0,93993.0,0.09052]
[1767712042629,0.12329777,94015.0,93994.0,0.09052]
[1767712042934,0.12329777,94013.0,93995.0,0.09052]
[1767712043235,0.0321022,94020.0,93995.0,0.09052]
[1767712043631,0.12542501,94019.0,93995.0,0.09052]
[1767712043830,0.00212724,94019.0,93995.0,0.09052]
[1767712044333,0.00212724,94019.0,93996.0,0.09231838]
[1767712044528,0.00212724,94019.0,94000.0,0.09183819]
[1767712044730,0.12542501,94019.0,93992.0,0.09183819]
[1767712044926,0.12329777,94018.0,93992.0,0.09183819]
[1767712045136,0.12329777,94018.0,93993.0,0.09052]
[1767712045536,0.00212724,94019.0,93994.0,0.09183819]
[1767712046630,0.0321022,94017.0,93984.0,0.09183819]
[1767712046837,0.0321022,94017.0,93964.0,0.09582762]
[1767712046838,0.12329777,94002.0,93985.0,0.09048]
[1767712047045,0.12329777,94002.0,93986.0,0.09048]
[1767712048036,0.12329777,94002.0,93975.0,0.09183819]
[1767712048238,0.12329777,94002.0,93964.0,0.09183819]
[1767712048239,0.0321022,93997.0,93964.0,0.09183819]
[1767712048439,0.0321022,93997.0,93966.0,0.09183819]
[1767712048635,0.12329777,93994.0,93966.0,0.09183819]
[1767712048833,0.12329777,93992.0,93967.0,0.09048]
[1767712049937,0.12329777,93986.0,93958.0,0.09183819]
[1767712050137,0.12329777,93984.0,93959.0,0.09048]
[1767712050333,0.12329777,93978.0,93950.0,0.1515094]
[1767712050541,0.12329777,93976.0,93951.0,0.09048]
[1767712051240,0.12329777,93976.0,93940.0,0.07645249]
[1767712051241,0.11777043,93973.0,93944.0,0.08588108]
[1767712051443,0.11777043,93970.0,93945.0,0.09048]
[1767712051644,0.11777043,93970.0,93944.0,0.08588108]
[1767712051843,0.11777043,93956.0,93942.0,0.09048]
[1767712052138,0.11777043,93953.0,93930.0,0.00011507]
[1767712052448,0.02757968,93950.0,93930.0,0.00011507]
[1767712052941,0.09019075,93951.0,93930.0,0.09059507]
[1767712053446,0.09019075,93960.0,93931.0,0.10277372]
[1767712053641,0.11777043,93957.0,93931.0,0.09212472]
[1767712053943,0.29436,93973.0,93930.0,0.09059507]
[1767712053944,0.02757968,93953.0,93930.0,0.09059507]
[1767712054340,0.11777043,93953.0,93930.0,0.09059507]
[1767712054937,0.11777043,93953.0,93931.0,0.010649]
[1767712055132,0.09019075,93953.0,93930.0,0.09059507]
[1767712055346,0.11777043,93953.0,93930.0,0.09059507]
[1767712055844,0.09052,93957.0,93932.0,0.09212472]
[1767712056043,0.20829043,93957.0,93932.0,0.09212472]
[1767712056247,0.02757968,93956.0,93932.0,0.09212472]
[1767712057050,0.11777043,93956.0,93932.0,0.18264472]
[1767712057349,0.11777043,93945.0,93928.0,0.09052]
[1767712057540,0.11777043,93945.0,93927.0,0.09052]
[1767712057740,0.11777043,93945.0,93915.0,0.09212472]
[1767712057946,0.11777043,93945.0,93917.0,0.09212472]
[1767712058348,0.11777043,93945.0,93917.0,0.10277572]
[1767712058349,0.0001191,93944.0,93917.0,0.10277572]
[1767712058536,0.0001191,93944.0,93929.0,0.00212928]
[1767712059340,0.0001191,93944.0,93932.0,0.10277372]
[1767712059547,0.09052,93954.0,93935.0,0.09212472]
[1767712059854,0.09019075,93963.0,93935.0,0.09212472]
[1767712060052,0.09052,93962.0,93938.0,0.10277272]
[1767712060442,0.09052,93962.0,93938.0,0.09212472]
[1767712060952,0.02757968,93966.0,93939.0,0.10277272]
[1767712061150,0.09052,93969.0,93942.0,0.09212472]
[1767712061353,0.02757968,93968.0,93942.0,0.09212472]
[1767712062160,0.18071075,93969.0,93942.0,0.09212472]
[1767712063148,0.09052,93969.0,93942.0,0.10277272]
[1767712063453,0.09052,93969.0,93942.0,0.09212472]
[1767712063847,0.11777043,93958.0,93929.0,0.00212928]
[1767712064157,0.11777043,93953.0,93936.0,0.09052]
[1767712064557,0.11777043,93953.0,93929.0,0.00212928]
[1767712064856,0.11777043,93951.0,93930.0,0.09052]
[1767712066251,0.02757968,93948.0,93930.0,0.09052]
[1767712066658,0.02757968,93948.0,93929.0,0.00212928]
[1767712067556,0.11777043,93940.0,93909.0,0.09212472]
[1767712067757,0.02757968,93933.0,93910.0,0.09052]
[1767712068056,0.02757968,93927.0,93911.0,0.089399]
[1767712068255,0.02757968,93927.0,93908.0,0.09052]
[1767712068555,0.02757968,93926.0,93901.0,0.09212472]
[1767712068761,0.02757968,93926.0,93902.0,0.09052]
[1767712069461,0.02757968,93926.0,93902.0,0.19329772]
[1767712069656,0.02757968,93926.0,93902.0,0.18264472]
[1767712069851,0.010651,93921.0,93902.0,0.18264472]
[1767712070057,0.010651,93921.0,93903.0,0.09052]
[1767712070258,0.010651,93921.0,93903.0,0.18264472]
[1767712070762,0.010651,93915.0,93903.0,0.09052]
[1767712070956,0.010651,93913.0,93899.0,0.00212996]
[1767712071260,0.02757968,93916.0,93899.0,9.6e-07]
[1767712071459,0.02757968,93916.0,93887.0,0.09212472]
[1767712071460,0.010653,93900.0,93887.0,0.18264472]
[1767712071659,0.010653,93900.0,93887.0,0.09052]
[1767712071961,0.010653,93903.0,93887.0,0.09052]
[1767712072354,0.010653,93903.0,93883.0,0.09052]
[1767712073058,0.09019075,93912.0,93883.0,0.09052]
[1767712073059,0.010652,93905.0,93883.0,0.09052]
[1767712073265,0.010652,93911.0,93890.0,0.09212472]
[1767712073449,0.11777043,93929.0,93899.0,0.09212472]
[1767712073651,0.09056,93928.0,93899.0,0.09212472]
[1767712073864,0.010651,93920.0,93899.0,0.09212472]
[1767712074363,0.02757968,93922.0,93894.0,0.09056]
[1767712074655,0.02757968,93918.0,93894.0,0.09056]
[1767712074857,0.010652,93910.0,93894.0,0.09056]
[1767712075451,0.010649,93935.0,93911.0,0.12227461]
[1767712075764,0.010649,93935.0,93912.0,0.09212472]
[1767712075964,0.09056,93938.0,93917.0,0.010651]
[1767712076261,0.09056,93937.0,93918.0,0.09212472]
[1767712076560,0.09056,93936.0,93918.0,0.09212472]
[1767712076766,0.09056,93938.0,93920.0,0.09531312]
[1767712077071,0.09056,93938.0,93921.0,0.01065]
[1767712078356,0.09056,93938.0,93920.0,0.09531312]
[1767712080055,0.09056,93938.0,93920.0,0.10596312]
[1767712080263,0.02852555,93954.0,93926.0,0.09531312]
[1767712080562,0.010647,93951.0,93930.0,0.09531312]
[1767712081368,0.09056,93953.0,93930.0,0.09531312]
[1767712081567,0.010647,93952.0,93930.0,0.09531312]
[1767712081963,0.02852555,93954.0,93931.0,0.11003366]
[1767712082166,0.12095693,93966.0,93939.0,0.09938466]
[1767712082471,0.010646,93959.0,93939.0,0.09938466]
[1767712082964,0.010646,93953.0,93939.0,0.09938466]
[1767712083161,0.12095693,93976.0,93947.0,0.09938466]
[1767712083470,0.01276992,93989.0,93927.0,0.09938466]
[1767712083471,0.02732223,93955.0,93927.0,0.09938466]
[1767712083680,0.010646,93951.0,93929.0,0.11003266]
[1767712084460,0.010646,93949.0,93929.0,0.11003266]
[1767712084659,0.1841947,93958.0,93929.0,0.11003266]
[1767712084660,0.010646,93952.0,93929.0,0.11003266]
[1767712085059,0.010646,93952.0,93931.0,0.010648]
[1767712085371,0.101205,93960.0,93940.0,0.02976354]
[1767712085556,0.010645,93960.0,93941.0,0.09938466]
[1767712085760,0.010645,93962.0,93941.0,0.09938466]
[1767712086763,0.010645,93960.0,93941.0,0.09938466]
[1767712086966,0.09056,93963.0,93944.0,0.09938466]
[1767712087165,0.010641,93994.0,93949.0,0.09938466]
[1767712087166,0.09056,93968.0,93949.0,0.09938466]
[1767712087367,0.010644,93968.0,93951.0,0.09938466]
[1767712087563,0.010645,93964.0,93951.0,0.09938466]
[1767712088070,0.09056,93972.0,93951.0,0.09938466]
[1767712088470,0.09056,93972.0,93951.0,0.11003066]
[1767712089167,0.010644,93971.0,93951.0,0.11003066]
[1767712089472,0.02732223,93990.0,93959.0,0.09938466]
[1767712089661,0.010642,93985.0,93963.0,0.09938466]
[1767712089863,0.09052,94000.0,93969.0,0.09938466]
[1767712090063,0.09052,94000.0,93968.0,0.02976354]
[1767712090064,0.010642,93990.0,93971.0,0.09938466]
[1767712090362,0.010642,93990.0,93970.0,0.09052]
[1767712090363,0.12095693,93994.0,93963.0,0.09938466]
[1767712090658,0.2266657,94000.0,93964.0,0.09052]
[1767712090659,0.12095693,93990.0,93964.0,0.09052]
[1767712091167,0.12095693,93990.0,93965.0,0.09938466]
[1767712091372,0.12095693,93997.0,93965.0,0.09938466]
[1767712092075,0.12095693,93991.0,93965.0,0.09938466]
[1767712093365,0.12095693,93991.0,93950.0,0.1344849]
[1767712093366,0.12095693,93983.0,93964.0,0.09052]
[1767712093563,0.12095693,93980.0,93961.0,0.09052]
[1767712093764,0.0936347,93996.0,93966.0,0.09938466]
[1767712093958,0.09052,94002.0,93979.0,0.02976354]
[1767712094164,0.09052,94002.0,93980.0,0.09938466]
[1767712094364,0.09052,94002.0,93981.0,0.09938466]
[1767712094564,0.09052,94002.0,93982.0,0.09938466]
[1767712094767,0.09052,94009.0,93983.0,0.1291482]
[1767712094972,0.09052,94009.0,93984.0,0.09938466]
[1767712095174,0.12095693,94001.0,93978.0,0.09052]
[1767712095863,0.02732223,94008.0,93978.0,0.18990466]
[1767712096068,0.12095693,94007.0,93978.0,0.18990466]
[1767712096362,0.12095693,94004.0,93978.0,0.09938466]
[1767712096568,0.1361457,94000.0,93979.0,0.09052]
[1767712096768,0.1361457,94000.0,93980.0,0.09052]
[1767712096970,0.12095693,93995.0,93970.0,0.09938466]
[1767712097273,0.12095693,93995.0,93974.0,0.09052]
[1767712099764,0.09052,93998.0,93976.0,0.09938466]
[1767712100075,0.09052,94005.0,93981.0,0.09938466]
[1767712100470,0.1841547,94005.0,93981.0,0.09938466]
[1767712100665,0.09052,94005.0,93981.0,0.09938466]
[1767712100864,0.02732223,94001.0,93974.0,0.18990466]
[1767712101059,0.02732223,94001.0,93975.0,0.09938466]
[1767712101975,0.09052,94005.0,93976.0,0.09052]
[1767712101976,0.12095693,93995.0,93976.0,0.09052]
[1767712102177,0.12095693,93995.0,93977.0,0.09052]
[1767712102478,0.12095693,93995.0,93975.0,0.09052]
[1767712102771,0.09052,94005.0,93978.0,0.1291482]
[1767712102972,0.09052,94004.0,93981.0,0.09938466]
[1767712103661,0.09052,94004.0,93975.0,0.09052]
[1767712103662,0.12095693,94003.0,93975.0,0.09052]
[1767712103861,0.02732223,93998.0,93975.0,0.09052]
[1767712104373,0.12095693,93995.0,93974.0,0.09052]
[1767712105471,0.09052,94004.0,93975.0,0.09938466]
[1767712105673,0.09052,94004.0,93980.0,0.09938466]
[1767712106075,0.09052,94004.0,93983.0,0.09938466]
[1767712106279,0.09052,94004.0,93984.0,0.09938466]
[1767712107175,0.09052,94013.0,93993.0,0.09938466]
[1767712108181,0.09052,94013.0,93990.0,0.09052]
[1767712108482,0.09264724,94019.0,93995.0,0.09938466]
[1767712108881,0.09264724,94019.0,93988.0,0.09938466]
[1767712108882,0.12095693,94017.0,93988.0,0.09938466]
[1767712109080,0.12095693,94015.0,93988.0,0.09938466]
[1767712109385,0.02732223,94010.0,93989.0,0.09052]
[1767712109567,0.02732223,94017.0,93990.0,0.09052]
[1767712109772,0.02732223,94017.0,93991.0,0.09052]
[1767712109971,0.09264724,94019.0,93998.0,0.09938466]
[1767712111675,0.09264724,94019.0,93991.0,0.18095748]
[1767712111874,0.09264724,94019.0,93992.0,0.09043748]
[1767712112272,0.1361457,94010.0,93984.0,0.09043748]
[1767712112475,0.12316433,94009.0,93984.0,0.09043748]
[1767712112783,0.1361457,94000.0,93981.0,0.09048]
[1767712112978,0.02683832,93998.0,93977.0,0.09048]
[1767712113173,0.09632601,93999.0,93977.0,0.09048]
[1767712113375,0.09632601,93999.0,93965.0,0.07645249]
[1767712113376,0.12316433,93993.0,93965.0,0.09043748]
[1767712113579,0.16298402,93990.0,93966.0,0.09048]
[1767712113880,0.02683832,93990.0,93966.0,0.09048]
[1767712114080,0.02683832,93990.0,93966.0,0.18091748]
[1767712114878,0.02683832,93997.0,93967.0,0.11832973]
[1767712115083,0.09048,94003.0,93975.0,0.09043748]
[1767712115282,0.09048,94003.0,93974.0,0.02789225]
[1767712115283,0.09048,94003.0,93977.0,0.02789225]
[1767712115576,0.09048,94010.0,93987.0,0.11832973]
[1767712115782,0.09048,94010.0,93990.0,0.09043748]
[1767712115783,0.06548,94010.0,93990.0,0.09043748]
[1767712115974,0.06548,94010.0,93992.0,0.09043748]
[1767712116169,0.06548,94010.0,93991.0,0.09048]
[1767712116370,0.32479003,94010.0,93981.0,0.09048]
[1767712116577,0.32479003,94010.0,93982.0,0.09043748]
[1767712118486,0.12316433,94006.0,93980.0,0.09048]
[1767712118678,0.12316433,94006.0,93980.0,0.18091748]
[1767712118881,0.2016257,94010.0,93981.0,0.09043748]
[1767712119879,0.09632601,94007.0,93981.0,0.09043748]
[1767712120080,0.02683832,94004.0,93980.0,0.09048]
[1767712121381,0.02683832,94003.0,93980.0,0.09048]
[1767712121782,0.1361457,93990.0,93974.0,0.09048]
[1767712121981,0.02683832,93994.0,93974.0,0.09048]
[1767712122181,0.16298402,93990.0,93968.0,0.07645249]
[1767712122381,0.25931003,93990.0,93969.0,0.09048]
[1767712122588,0.1361457,93990.0,93970.0,0.09043748]
[1767712122974,0.02683832,93994.0,93970.0,0.09043748]
[1767712123287,0.12316433,93994.0,93970.0,0.09043748]
[1767712123687,0.12316433,93992.0,93969.0,0.09048]
[1767712123880,0.12316433,93992.0,93964.0,0.02789225]
[1767712124277,0.09632601,93991.0,93960.0,0.07645249]
[1767712124477,0.16298402,93970.0,93951.0,0.08727123]
[1767712124683,0.09048,93974.0,93945.0,0.02789225]
[1767712125377,0.010645,93962.0,93945.0,0.02789225]
[1767712125783,0.010645,93962.0,93946.0,0.09043748]
[1767712126087,0.010644,93965.0,93946.0,0.09043748]
[1767712126287,0.010644,93969.0,93946.0,0.09043748]
[1767712126486,0.010645,93964.0,93946.0,0.09043748]
[1767712126785,0.010644,93966.0,93946.0,0.11832973]
[1767712126989,0.010644,93969.0,93949.0,0.09043748]
[1767712127189,0.09048,93974.0,93949.0,0.09043748]
[1767712127584,0.010645,93964.0,93949.0,0.09043748]
[1767712128385,0.12316433,93973.0,93949.0,0.09043748]
[1767712128689,0.010644,93965.0,93945.0,0.09043748]
[1767712128996,0.010645,93963.0,93945.0,0.09043748]
[1767712129494,0.010645,93964.0,93945.0,0.09043748]
[1767712129789,0.1361457,93970.0,93945.0,0.09043748]
[1767712129997,0.010645,93962.0,93945.0,0.09043748]
[1767712130291,0.02683832,93954.0,93936.0,0.0001144]
[1767712130484,0.12316433,93953.0,93928.0,0.09052]
[1767712130989,0.1361457,93940.0,93907.0,0.02789225]
[1767712131182,0.1361457,93930.0,93913.0,0.09052]
[1767712131384,0.1361457,93930.0,93880.0,0.1361457]
[1767712131385,0.12316433,93925.0,93886.0,0.02789225]
[1767712131589,0.09632601,93925.0,93889.0,0.02789225]
[1767712131890,0.09632601,93925.0,93892.0,0.02789225]
[1767712132194,0.0001144,93924.0,93893.0,0.10109048]
[1767712132389,0.0001144,93924.0,93893.0,0.12898273]
[1767712132585,0.0001144,93924.0,93894.0,0.09043748]
[1767712132790,0.1361457,93920.0,93894.0,0.09043748]
[1767712132982,0.1361457,93910.0,93892.0,0.09052]
[1767712133187,0.1361457,93902.0,93873.0,0.02789225]
[1767712133390,0.1361457,93902.0,93872.0,0.08508607]
[1767712133391,0.010654,93885.0,93872.0,0.08508607]
[1767712133585,0.010654,93879.0,93857.0,0.02789225]
[1767712133893,0.23247171,93882.0,93860.0,0.09052]
[1767712134193,0.1361457,93882.0,93859.0,0.00011677]
[1767712134394,0.1468007,93870.0,93853.0,0.09052]
[1767712134598,0.1468007,93870.0,93847.0,0.09052]
[1767712134790,0.09632601,93873.0,93847.0,0.09052]
[1767712135187,0.010655,93872.0,93847.0,0.09052]
[1767712135387,0.09632601,93873.0,93847.0,0.09052]
[1767712135588,8.719e-05,93871.0,93847.0,0.09052]
[1767712136991,8.719e-05,93871.0,93853.0,0.09711493]
[1767712138099,8.719e-05,93871.0,93827.0,0.09056]
[1767712138100,0.010657,93852.0,93827.0,0.09056]
[1767712138394,0.010658,93849.0,93827.0,0.09056]
[1767712139094,9.723e-05,93851.0,93827.0,0.09056]
[1767712139300,0.010657,93850.0,93827.0,0.09056]
[1767712139496,9.723e-05,93851.0,93827.0,0.09056]
[1767712139698,0.010656,93864.0,93831.0,0.03138472]
[1767712139896,0.0973531,93872.0,93827.0,0.09056]
[1767712139897,0.09056,93863.0,93835.0,0.03138472]
[1767712140091,0.09056,93863.0,93838.0,0.12849965]
[1767712140291,0.101216,93863.0,93838.0,0.12849965]
[1767712140687,0.00012047,93862.0,93838.0,0.12849965]
[1767712140893,0.010656,93861.0,93838.0,0.21905965]
[1767712141196,0.0973531,93881.0,93851.0,0.12433866]
[1767712141498,0.010656,93866.0,93843.0,0.03178553]
[1767712141706,0.010655,93870.0,93843.0,0.03178553]
[1767712141897,0.0911914,93884.0,93852.0,0.12433866]
[1767712142096,0.010655,93874.0,93852.0,0.12433866]
[1767712142404,0.010655,93869.0,93849.0,0.09056]
[1767712142587,0.0290097,93865.0,93827.0,0.03178553]
[1767712142793,0.010657,93850.0,93828.0,0.09056]
[1767712142994,0.010658,93843.0,93819.0,0.03178553]
[1767712143192,0.09056,93856.0,93824.0,0.09255313]
[1767712143391,0.010658,93849.0,93825.0,0.09056]
[1767712143591,0.010658,93842.0,93811.0,0.03178553]
[1767712143796,0.010659,93839.0,93811.0,0.03178553]
[1767712144001,0.0911914,93840.0,93812.0,0.0906]
[1767712144197,0.101218,93845.0,93815.0,0.12433866]
[1767712144399,0.010658,93842.0,93819.0,0.09255313]
[1767712144799,0.010658,93849.0,93826.0,0.12433866]
[1767712145002,0.1018494,93846.0,93817.0,0.12433866]
[1767712145191,0.0911914,93846.0,93817.0,0.12433866]
[1767712145397,0.010657,93851.0,93822.0,0.03178553]
[1767712145702,0.0906,93850.0,93824.0,0.09255313]
[1767712145902,0.010658,93849.0,93824.0,0.09255313]
[1767712146101,0.010658,93846.0,93819.0,0.03178553]
[1767712146400,0.010658,93846.0,93816.0,0.0906]
[1767712146401,0.010658,93842.0,93820.0,0.09255313]
[1767712146601,0.010659,93839.0,93816.0,0.0906]
[1767712146792,0.010658,93841.0,93816.0,0.0906]
[1767712146997,0.0906,93850.0,93816.0,0.0906]
[1767712146998,0.0911914,93845.0,93816.0,0.0906]
[1767712147200,0.010659,93840.0,93816.0,0.0906]
[1767712147404,0.010658,93847.0,93823.0,0.12433866]
[1767712147703,0.0906,93850.0,93823.0,0.12433866]
[1767712147704,0.00852736,93844.0,93823.0,0.12433866]
[1767712147902,0.010658,93848.0,93823.0,0.12433866]
[1767712148201,0.010658,93846.0,93824.0,0.09255313]
[1767712148393,0.0906,93849.0,93826.0,0.01066]
[1767712148600,0.0906,93849.0,93825.0,0.09255313]
[1767712149402,0.0906,93849.0,93825.0,0.10321313]
[1767712149608,0.0906,93849.0,93824.0,0.03178553]
[1767712149609,0.0906,93849.0,93827.0,0.10321313]
[1767712149805,0.0906,93849.0,93827.0,0.12433866]
[1767712150200,0.0906,93849.0,93830.0,0.01066]
[1767712150418,0.0906,93857.0,93834.0,0.12433866]
[1767712150709,0.010657,93855.0,93834.0,0.12433866]
[1767712150896,0.010657,93855.0,93828.0,0.10126]
[1767712151102,0.0906,93857.0,93828.0,0.10126]
[1767712151103,0.010657,93853.0,93828.0,0.10126]
[1767712151508,0.0911914,93854.0,93828.0,0.0906]
[1767712151708,0.010658,93846.0,93819.0,0.010661]
[1767712152010,0.0911914,93854.0,93820.0,0.0906]
[1767712152011,0.010659,93841.0,93820.0,0.0906]
[1767712152210,0.010659,93841.0,93818.0,0.12433866]
[1767712152409,0.010659,93841.0,93819.0,0.0906]
[1767712152715,0.1018494,93847.0,93823.0,0.01066]
[1767712153012,0.0906,93850.0,93833.0,0.12433866]
[1767712153203,0.010658,93849.0,93833.0,0.09255313]
[1767712153399,0.0911914,93865.0,93836.0,0.12433866]
[1767712153710,0.010657,93853.0,93837.0,0.12433866]
[1767712153897,0.010657,93856.0,93837.0,0.12433866]
[1767712154101,0.0911914,93864.0,93837.0,0.12433866]
[1767712154102,0.010656,93860.0,93837.0,0.12433866]
[1767712154298,0.0911914,93864.0,93837.0,0.12433866]
[1767712154507,0.0911914,93862.0,93837.0,0.12433866]
[1767712154704,0.0911914,93862.0,93830.0,0.12238553]
[1767712154902,0.0911914,93862.0,93832.0,0.12433866]
[1767712155103,0.0911914,93862.0,93833.0,0.12433866]
[1767712155319,0.010657,93857.0,93833.0,0.12433866]
[1767712155502,0.0911914,93853.0,93825.0,0.12433866]
[1767712155811,0.0911914,93849.0,93826.0,0.0906]
[1767712156111,0.010657,93852.0,93826.0,0.01066]
[1767712156413,0.010658,93849.0,93828.0,0.12433866]
[1767712156608,0.010657,93852.0,93828.0,0.12433866]
[1767712156908,0.0911914,93839.0,93820.0,0.09064]
[1767712157111,0.010658,93843.0,93820.0,0.09064]
[1767712157298,0.09064,93846.0,93820.0,0.09064]
[1767712157299,0.010659,93841.0,93820.0,0.09064]
[1767712157504,0.010659,93839.0,93820.0,0.09064]
[1767712158300,0.1818314,93846.0,93820.0,0.09064]
[1767712158506,0.010658,93844.0,93820.0,0.09064]
[1767712158806,0.09064,93846.0,93825.0,0.03178553]
[1767712159001,0.010657,93853.0,93826.0,0.04244553]
[1767712159213,0.09064,93859.0,93834.0,0.03178553]
[1767712159515,0.010657,93854.0,93834.0,0.21497866]
[1767712160105,0.0911914,93864.0,93834.0,0.21497866]
[1767712160306,0.1202011,93881.0,93850.0,0.03178553]
[1767712160505,0.0911914,93881.0,93852.0,0.03178553]
[1767712160704,0.010654,93880.0,93853.0,0.101297]
[1767712161113,0.09064,93882.0,93858.0,0.12433866]
[1767712161309,0.010654,93884.0,93862.0,0.12433866]
[1767712161502,0.010654,93884.0,93863.0,0.12433866]
[1767712161705,0.0911914,93889.0,93864.0,0.09064]
[1767712161900,0.09064,93891.0,93864.0,0.09064]
[1767712161901,0.010654,93879.0,93864.0,0.09064]
[1767712162718,0.010654,93882.0,93864.0,0.09064]
[1767712163105,0.0911914,93884.0,93864.0,0.09064]
[1767712163507,0.010654,93879.0,93864.0,0.09064]
[1767712163706,0.010654,93883.0,93864.0,0.09064]
[1767712163906,0.010654,93881.0,93864.0,0.09064]
[1767712164107,0.0911914,93883.0,93852.0,0.12433866]
[1767712164108,0.010655,93876.0,93852.0,0.12433866]
[1767712164402,0.010654,93879.0,93853.0,0.101297]
[1767712164711,0.0911914,93889.0,93855.0,0.010657]
[1767712164916,0.0911914,93885.0,93854.0,0.03178553]
[1767712165309,0.010654,93880.0,93854.0,0.03178553]
[1767712165722,0.010654,93884.0,93858.0,0.03178553]
[1767712166019,0.010654,93878.0,93857.0,0.09255313]
[1767712166410,0.0911914,93879.0,93853.0,0.09064]
[1767712166611,0.010655,93874.0,93853.0,0.09064]
[1767712166905,0.0911914,93874.0,93853.0,0.09064]
[1767712167109,0.0911914,93894.0,93866.0,0.12433866]
[1767712167306,0.010653,93890.0,93867.0,0.12433866]
[1767712167510,0.109173,93893.0,93869.0,0.03178553]
[1767712167812,0.09852,93893.0,93869.0,0.12238553]
[1767712168017,0.0911914,93884.0,93855.0,0.03178553]
[1767712168314,0.0290097,93885.0,93855.0,0.03178553]
[1767712168315,0.0911914,93881.0,93856.0,0.0906]
[1767712168713,0.0911914,93881.0,93856.0,0.21493866]
[1767712169017,0.1018454,93881.0,93858.0,0.010656]
[1767712169218,0.0911914,93881.0,93858.0,0.010656]
[1767712169909,0.0911914,93890.0,93861.0,0.03178553]
[1767712170116,0.010653,93888.0,93862.0,0.03178553]
[1767712170316,0.010653,93886.0,93862.0,0.04244153]
[1767712170608,0.010653,93888.0,93863.0,0.04244153]
[1767712170916,0.010653,93886.0,93863.0,0.13499466]
[1767712171911,0.010653,93889.0,93863.0,0.13499466]
[1767712172115,0.010653,93890.0,93869.0,0.02877533]
[1767712172318,0.010653,93887.0,93869.0,0.02877533]
[1767712172517,0.010653,93887.0,93868.0,0.08421822]
[1767712172718,0.010654,93885.0,93862.0,0.02877533]
[1767712173026,0.010654,93885.0,93863.0,0.010656]
[1767712173317,0.010654,93885.0,93862.0,0.02877533]
[1767712173318,0.010653,93888.0,93865.0,0.010656]
[1767712173620,0.09852,93893.0,93856.0,0.0906]
[1767712173621,0.018573,93893.0,93871.0,0.02877533]
[1767712173812,0.00792,93893.0,93869.0,0.0906]
[1767712174006,0.010653,93892.0,93869.0,0.0906]
[1767712174211,0.010653,93890.0,93869.0,0.0906]
[1767712174714,0.00792,93893.0,93869.0,0.0906]
[1767712174916,0.00792,93893.0,93870.0,0.02877533]
[1767712175119,0.00792,93893.0,93885.0,0.010653]
[1767712175322,0.07717653,93909.0,93884.0,0.010654]
[1767712175323,0.010651,93908.0,93884.0,0.010654]
[1767712175619,0.010651,93907.0,93885.0,0.0906]
[1767712175920,0.0906,93915.0,93889.0,0.02877533]
[1767712176113,0.010649,93922.0,93897.0,0.010652]
[1767712176315,0.0906,93924.0,93901.0,0.02877533]
[1767712176720,0.07717653,93926.0,93902.0,0.02877533]
[1767712176923,0.010649,93928.0,93906.0,0.11299355]
[1767712177418,0.07717653,93935.0,93903.0,0.02877533]
[1767712177612,0.0906,93940.0,93912.0,0.02877533]
[1767712177812,0.0906,93941.0,93913.0,0.11937533]
[1767712178020,0.0906,93941.0,93919.0,0.01065]
[1767712178218,0.0906,93949.0,93918.0,0.08421822]
[1767712178429,0.0906,93949.0,93924.0,0.02877533]
[1767712178621,0.0906,93949.0,93925.0,0.0906]
[1767712178821,0.07717653,93945.0,93925.0,0.0906]
[1767712179220,0.07717653,93944.0,93914.0,0.11299355]
[1767712179427,0.07717653,93943.0,93915.0,0.0906]
[1767712181228,0.07717653,93943.0,93916.0,0.0906]
[1767712181426,0.07717653,93942.0,93916.0,0.0906]
[1767712184019,0.07717653,93942.0,93917.0,0.03942533]
[1767712184328,0.07717653,93942.0,93922.0,0.010649]
[1767712184724,0.0906,93949.0,93924.0,0.010649]
[1767712184919,0.0906,93949.0,93923.0,0.02877533]
[1767712185119,0.0906,93949.0,93925.0,0.02877533]
[1767712185323,0.0906,93949.0,93926.0,0.010649]
[1767712185521,0.0906,93949.0,93927.0,0.09056]
[1767712185719,0.07717653,93948.0,93927.0,0.09056]
[1767712185915,0.09056,93956.0,93927.0,0.11933533]
[1767712186131,0.0021286,93959.0,93937.0,0.010648]
[1767712186328,0.0021286,93959.0,93938.0,0.09056]
[1767712189729,0.1059533,93958.0,93925.0,0.02877533]
[1767712189931,0.07717653,93955.0,93930.0,0.03942333]
[1767712190125,0.0021286,93959.0,93939.0,0.09459174]
[1767712190430,0.07717653,93970.0,93944.0,0.02877533]
[1767712190726,0.07717653,93970.0,93945.0,0.09056]
[1767712192433,0.1059533,93966.0,93945.0,0.09056]
[1767712192728,0.07717653,93965.0,93945.0,0.09056]
[1767712194520,0.09056,93971.0,93950.0,0.010646]
[1767712194726,0.07492845,93973.0,93951.0,0.02877533]